Cogmind - Beta 14 @@@ ROGUE MODE // 2025.01.04 @ 09:30:10 Player: Fazzonamite Result: Destroyed by D-53 Grenadier with Mini Grenade Launcher Performance ------------- Evolutions (0) 0 Regions Visited (2) 400 Robots Destroyed (23) 115 Value Destroyed (425) 425 Prototype IDs (2) 40 Alien Tech Used (0) 0 Bonus (0) 0 TOTAL SCORE: 980 Bonus ------- None Cogmind --------- Core Integrity 0/250 Matter 300/300 Energy 99/100 System Corruption 0% Temperature Cool (0) Movement Rolling (140) Ox4 Location -10/Mines Parts ------- > --- POWER (1) -------- (None) > --- PROPULSION (2) --- Light Treads Wheel > --- UTILITY (2) ------ High-capacity Storage Unit > --- WEAPON (2) ------- Small Laser Light Assault Rifle > --- INVENTORY (20) --- Light Ion Engine Light Ion Engine Aluminum Leg Aluminum Leg Wheel Heat Sink Small Storage Unit Medium Matter Pod (100) Structural Scanner Signal Interpreter Targeting Computer Light Armor Plating Medium Laser Particle Gun Particle Gun Light Assault Rifle Welding Torch Makeshift Sword Peak State ------------ > --- POWER ------------ Ion Engine > --- PROPULSION ------- Light Treads Wheel > --- UTILITY ---------- High-capacity Storage Unit Seismic Detector > --- WEAPON ----------- Particle Gun Light Assault Rifle > --- INVENTORY -------- Light Ion Engine Light Ion Engine Light Treads Wheel Small Storage Unit Medium Matter Pod Structural Scanner Signal Interpreter Targeting Computer Light Armor Plating Light Armor Plating Medium Laser Small Laser Light Assault Rifle Welding Torch [Rating: 9] Favorites ----------- Power Ion Engine Engine Ion Engine Propulsion Wheel Treads Light Treads Wheel Wheel Utility Seismic Detector Device Seismic Detector Storage High-capacity Storage Unit Protection Light Armor Plating Weapon Assault Rifle Energy Gun Medium Laser Ballistic Gun Assault Rifle Build | -11 -10 -10 ------- Run | Yrd Mat Min Slots Evolved . | . . . Power . | . . . Propulsion . | . . . Utility . | . . . Weapon . | . . . Parts Attached 24 | 6 8 10 Power 4 | 1 2 1 Engine 4 | 1 2 1 Core . | . . . Reactor . | . . . Propulsion 9 | 2 3 4 Treads 4 | . 2 2 Leg . | . . . Wheel 5 | 2 1 2 Hover . | . . . Flight . | . . . Utility 4 | 1 2 1 Device 1 | 1 . . Storage 2 | . 2 . Processor . | . . . Hackware . | . . . Protection 1 | . . 1 Artifact . | . . . Weapon 7 | 2 1 4 Energy Gun 3 | . 1 2 Energy Cannon . | . . . Ballistic Gun 4 | 2 . 2 Ballistic Cannon . | . . . Launcher . | . . . Special Weapon . | . . . Impact Weapon . | . . . Slashing Weapon . | . . . Piercing Weapon . | . . . Special Melee Weapon . | . . . Unidentified Prototypes . | . . . Parts Lost 9 | . 1 8 Power 3 | . 1 2 Propulsion 2 | . . 2 Utility 2 | . . 2 Weapon 2 | . . 2 Highest Loss Streak 3 | . 1 3 To Critical Strikes . | . . . Average Slot Usage (%) 98 | . 98 97 Engine 13 | . 13 14 Treads 7 | . 6 11 Wheel 19 | . 21 15 Device 12 | . 14 7 Storage 13 | . 12 14 Protection 1 | . . 7 Energy Gun 12 | . 12 12 Ballistic Gun 15 | . 15 14 Peak Build Rating 9 | 6 8 9 Average Rating 7 | 4 7 8 On Entrance 4 | . 6 8 Naked Turns . | . . . Heaviest Build 50 | 7 50 50 Greatest Support 26 | 26 26 20 Greatest Overweight (x) 4 | . 4 4 Average Overweight (x) 1 | . 1 3 Largest Inventory Capacity 20 | 5 20 20 Average Capacity 14 | 5 14 20 Most Carried 18 | 5 18 18 Average Carried 11 | 3 10 15 Final Capacity 20 | 5 20 20 Final Carried 18 | 4 18 18 Class Distribution -------------------- 96% | Mutant 3% | Scavenger-Mutant Dominant Class ---------------- Mutant | -10/Materials Mutant | -10/Mines Resources | -11 -10 -10 ----------- Run | Yrd Mat Min Matter Collected 718 | 244 353 121 Remotely . | . . . Salvage Created 618 | 45 396 177 Parts 42 | 6 27 9 Haulers Intercepted 1 | . 1 . Recyclers Shooed 1 | . 1 . Parts Field Recycled . | . . . Retrieved Matter . | . . . Parts Self-Destructed . | . . . Prevented . | . . . Kills | -11 -10 -10 ------- Run | Yrd Mat Min Combat Hostiles Destroyed 16 | . 8 8 Guns 16 | . 8 8 Classes Destroyed 6 | 1 5 . Builder 2 | . 2 . Tunneler 2 | 2 . . Hauler 1 | . 1 . Watcher 2 | . 2 . Swarmer 9 | . 3 6 Grunt 7 | . 5 2 Best Kill Streak 4 | 1 4 4 Combat Bots Only 4 | . 3 4 Max Kills in Single Turn 1 | 1 1 1 Gunslinging . | . . . Exploded . | . . . Melee . | . . . Uniques/NPCs Destroyed . | . . . Combat | -11 -10 -10 -------- Run | Yrd Mat Min Hostile Shots Fired 124 | . 46 78 Missed 20 | . 8 12 Damage Taken 1313 | . 477 836 Core 259 | . 127 132 Absorbed by Shields . | . . . Core Remaining (%) 100 | 100 . . Volleys Fired 86 | 9 42 35 Largest 2 | 2 2 2 Hottest 85 | 40 70 85 Shots Fired 172 | 18 84 70 Gun 172 | 18 84 70 Cannon . | . . . Launcher . | . . . Special . | . . . Kinetic 104 | 18 42 44 Thermal 68 | . 42 26 Explosive . | . . . Electromagnetic . | . . . Robot Hit Streak 7 | 4 7 7 Robot Miss Streak 5 | 1 2 5 Penetration Max . | . . . Secondary Targets 2 | . 1 1 Max Gunslinging Chain 1 | . 1 1 Shots Hit Robots 108 | 13 56 39 Core Hits 36 | 3 20 13 Critical Kills . | . . . Critical Parts Destroyed . | . . . Critical Strikes 3 | . 3 . Burn 3 | . 3 . Melee Attacks . | . . . Impact . | . . . Slashing . | . . . Piercing . | . . . Sneak Attacks . | . . . Combat Hostiles . | . . . Follow-up Attacks . | . . . Damage Inflicted 1214 | 139 701 374 Guns 1214 | 139 701 374 Cannons . | . . . Explosions . | . . . Melee . | . . . Ramming . | . . . Kinetic 652 | 139 340 173 Thermal 562 | . 361 201 Explosive . | . . . Electromagnetic . | . . . Impact . | . . . Slashing . | . . . Piercing . | . . . Highest Corruption . | . . . Average Corruption . | . . . Corruption Purged . | . . . Corruption Blocked . | . . . Overload Shots . | . . . Overflow Damage . | . . . Projectiles . | . . . Explosions . | . . . Melee . | . . . Knockbacks . | . . . Impact . | . . . Kinetic . | . . . Secondary . | . . . Self-Inflicted Damage . | . . . Shots . | . . . Rammed . | . . . Targets Rammed . | . . . Kicked . | . . . Crushed . | . . . Highest Temperature 336 | . 165 336 Average Temperature 106 | . 54 184 Received Heat Transfer 294 | . 210 84 Effects 1 | . . 1 Shutdowns 1 | . . 1 Siege Activations . | . . . Robots Corrupted . | . . . Combat Hostiles . | . . . Parts Fried . | . . . Impact Corruptions . | . . . Robots Melted . | . . . Combat Hostiles . | . . . Parts Melted 4 | . 3 1 Heat Transferred 1769 | . 1295 474 Parts Sabotaged . | . . . Parts Stolen . | . . . Parts Stripped . | . . . Power Chain Reactions . | . . . Alert | -11 -10 -10 ------- Run | Yrd Mat Min Peak Influence 263 | 10 263 215 Initial 6 | . 6 1 Average 95 | 3 103 105 Maximum Alert Level 1 | . 1 1 Low Security (%) 86 | 100 89 74 Level 1 13 | . 10 25 Level 2 . | . . . Level 3 . | . . . Level 4 . | . . . Level 5 . | . . . High Security . | . . . Max Security . | . . . Squads Dispatched 1 | . 1 . Investigation 1 | . 1 . Extermination . | . . . Reinforcement . | . . . Assault . | . . . Garrison . | . . . Intercept . | . . . Searches Triggered . | . . . Construction Impeded . | . . . Haulers Reinforced . | . . . Active Scanning Responses . | . . . Cargo Convoy Interrupts . | . . . Stealth | -11 -10 -10 --------- Run | Yrd Mat Min Distress Signals 1 | . . 1 Communications Jammed . | . . . Distress Signals . | . . . Times Spotted 33 | . 19 14 Peak Tracking Total 5 | . 4 5 Tactical Retreats 5 | . 2 3 Traps | -11 -10 -10 ------- Run | Yrd Mat Min Traps Triggered 2 | . 2 . Indirectly . | . . . Trap Hack Attempts . | . . . Triggered . | . . . Disarmed . | . . . Reprogrammed . | . . . Reused . | . . . Traps Extracted . | . . . Installed . | . . . Triggered . | . . . Machines | -11 -10 -10 ---------- Run | Yrd Mat Min Machines Disabled . | . . . Max in Single Turn . | . . . Machines Repaired . | . . . Machines Dismantled . | . . . Machines Sabotaged . | . . . Overloaded Fab Kills . | . . . Hacking | -11 -10 -10 --------- Run | Yrd Mat Min Machines Accessed 5 | . 5 . Terminals 5 | . 5 . Fabricators . | . . . Repair Stations . | . . . Recycling Units . | . . . Scanalyzers . | . . . Garrison Access . | . . . Total Hacks 9 | . 9 . Successful 7 | . 7 . Failed 2 | . 2 . Catastrophic . | . . . Database Lockouts . | . . . Manual 5 | . 5 . Terminals 9 | . 9 . Fabricators . | . . . Repair Stations . | . . . Recycling Units . | . . . Scanalyzers . | . . . Garrison Access . | . . . Terminal Hacks 4 | . 4 . Prototype ID Bank 1 | . 1 . Branch Access Points 1 | . 1 . Registered Components 1 | . 1 . Zone Layout 1 | . 1 . Fabricator Hacks . | . . . Repair Station Hacks . | . . . Recycling Unit Hacks . | . . . Scanalyzer . | . . . Garrison Access Hacks . | . . . Unauthorized Hacks 3 | . 3 . Terminals 3 | . 3 . Botnet 2 | . 2 . Operators 1 | . 1 . Fabricators . | . . . Repair Stations . | . . . Recycling Units . | . . . Scanalyzers . | . . . Garrison Access . | . . . Data Cores Recovered . | . . . Used . | . . . Hacking Detections 4 | . 4 . Full Trace Events . | . . . Feedback Events . | . . . Feedback Blocked . | . . . Robot Schematics Acquired . | . . . Robots Built . | . . . Authchips . | . . . Time . | . . . Total Robot Build Rating . | . . . Part Schematics Acquired . | . . . Parts Built . | . . . Authchips . | . . . Time . | . . . Total Part Build Rating . | . . . Parts Repaired . | . . . Time . | . . . Parts Recycled . | . . . Recycled Matter . | . . . Retrieved Matter . | . . . Retrieved Components . | . . . Parts Scanalyzed . | . . . Part Schematics Acquired . | . . . Parts Damaged . | . . . Bothacking | -11 -10 -10 ------------ Run | Yrd Mat Min Used RIF Installer . | . . . Robots Hacked . | . . . Non-combat . | . . . Combat . | . . . Robot Hacks Applied . | . . . Relay Couplers Released . | . . . Fabnet Peak Effective % . | . . . Robots Rewired . | . . . Allies Hacked . | . . . Hacks Repelled . | . . . Allies | -11 -10 -10 -------- Run | Yrd Mat Min Total Allies . | . . . Largest Group . | . . . Highest-Rated Group . | . . . Highest-Rated Ally . | . . . Total Orders . | . . . Ally Attacks . | . . . Total Damage . | . . . Kills . | . . . Allies Corrupted . | . . . Allies Melted . | . . . Intel | -11 -10 -10 ------- Run | Yrd Mat Min Robot Analysis Total . | . . . Derelict Logs Recovered . | . . . Drone Launches . | . . . Drone Recoveries . | . . . Exploration | -11 -10 -10 ------------- Run | Yrd Mat Min Turns Passed 1366 | 116 923 327 Spaces Moved 860 | 78 628 154 Core 15 | 15 . . Treads . | . . . Legs . | . . . Wheels 845 | 63 628 154 Hover . | . . . Flight . | . . . Fastest Speed 50 | 50 90 110 Average Speed 112 | 82 111 131 Slowest Speed 140 | 90 140 140 Overloaded Moves . | . . . Propulsion Burnouts . | . . . Robots Hopped . | . . . Cave-ins Triggered . | . . . Exploration Rate (%) 36 | 4 70 36 Regions Visited 2 Branch Regions 1 Pre-discovered Areas . | . . . Known Exits Taken 1 | . 1 . Unknown Exits Taken 1 | 1 . . Scrap Searched . | . . . Spaces Dug . | . . . Terrain Destroyed . | . . . Melee . | . . . Projectile . | . . . AOE . | . . . Terrain Rammed . | . . . Walls Destroyed . | . . . Machines Disabled . | . . . Actions | -11 -10 -10 --------- Run | Yrd Mat Min Total 1096 | 113 767 216 Wait 86 | 11 64 11 Move 858 | 77 627 154 Hop . | . . . Pick Up 36 | 10 20 6 Fast Attach . | . . . Attach 15 | 6 3 6 Detach . | . . . Swap 9 | . 5 4 Drop 6 | . 6 . Fire 86 | 9 42 35 Melee . | . . . Ram . | . . . Kick . | . . . Crush . | . . . Escape Stasis . | . . . Rewire . | . . . Trap . | . . . Miscellaneous . | . . . Route ------- -11/Scrapyard -10/Materials (discovered 5 exits: [*Mat x3] / *Min x2) -10/Mines (discovered 1 exit: [*Mat]) History --------- Turn | Location | Event 13 | -11/Scrapyard | Discovered new exit (range 15) 117 | -11/Scrapyard | Entered Materials 241 | -10/Materials | Discovered new exit (range 5) 250 | -10/Materials | Identified exit to Mines 309 | -10/Materials | Build established: Mutant 369 | -10/Materials | Discovered new exit (range 7) 763 | -10/Materials | Discovered new exit (range 15) 961 | -10/Materials | Core integrity fell below 50% 1040 | -10/Materials | Entered Mines 1084 | -10/Mines | Lost 3 parts (1n2w) 1120 | -10/Mines | Assembled infested the area 1163 | -10/Mines | Discovered new exit (range 13) 1249 | -10/Mines | Core integrity fell below 20% 1307 | -10/Mines | A weapon hastily lodged in a ceiling crevice suddenly fell to the ground 1367 | -10/Mines | Destroyed by D-53 Grenadier with Mini Grenade Launcher Last Messages --------------- 01238_ Acquired 15 matter. 01243_ Ion Engine destroyed. 01246_ S-10 Pest destroyed. 01257_ G-47 Trooper destroyed. 01259_ Lgt. Treads destroyed. 01264_ Destroyed Flight Unit. 01275_ Power failure, Lgt. Ion Engine shutdown. 01281_ S-10 Pest destroyed. 01284_ Acquired 63 matter. 01288_ Acquired Particle Gun. 01290_ Acquired Aluminum Leg. 01294_ Acquired Lgt. Ion Engine. 01296_ Acquired Heat Sink. 01299_ Acquired Aluminum Leg. 01307_ A Mak. Sword has been hastily shoved under some rubble with a note attached: "Here lies the sword of MA-1KR the Great. I think." 01310_ Acquired Mak. Sword. 01365_ Lgt. Ion Engine destroyed. 01365_ Lgt. Armor Plating destroyed. Map ----- +----------------------------------------------------+ | | | | | | | | | | | | | | | | | | | | | | | | | | | ??????????????????????????????????????? | | ??????????????????????????????????????? | | ?????????????####?????????????????????? | | ????????????## #########?????????????? | | ?????????#### #?????????????? | | ???????### d###### #?????????????? | | ????#### ##???# #?????????????? | | ????# ##??# #?????????????? | | ???## #### ######????????? | | ??## d ########## | | ??# % | | ?# ######## ########## | | ?# @ #??????# #????????# | | ?## #??????# #??##????# | | ??### ## #??????# #?# ##???? | | ????## #?#### #??????# ## #???? | | ?????###?????## #??????# #????? | | ??????????????## ##?????## ##????? | | ???????????????? #?????## ##?????? | | ???????????????? #?????# ##??????? | | ???????????????? #?????### ##???????? | | ???????????????? #???????# #######??? | | ?????????????????##???????# | | ??????????????????????????# #######??? | | ????????????????????????### ##???????? | | ???????????????????????## ##??????? | | ??????????????????????## #??????? | | ??????????????????????# #??????? | | ??????????????????????# #??????? | | ??????????????????????# ## ##??????? | | ??????????????????????# ### ##??????? | | ??????????????????????# ### ##?????? | | ??????????????????????# #?????? | | ??????????????????????# ### ##????? | | ?????????????????????## ### ##???? | | ????????????????????## #???? | | ???????????????????## #??? | +----------------------------------------------------+ Best States ------------- Heat Dissipation 25 Energy Generation 10 Energy Capacity 250 Matter Stores 300 Matter Capacity 300 Sight Range 16 Terrain Scan Density 10 Armor Coverage 150 Evasion (%) 50 Recoil Reduction 1 Item Schematics ----------------- None Robot Schematics ------------------ None Fabricated ------------ Nothing Alien Tech Used ----------------- None Achievements -------------- None Challenges ------------ None Game ------ Seed CombatSpectralTendrils Manual? 0 Play Time 00:24:12 Cumulative 154.5 hours Start 2025.01.04 @ 09:07:04 End 2025.01.04 @ 09:30:10 Sessions 1 Manual Loads 0 Difficulty Rogue Special Mode None Game No. 105 Rogue 105 Adventurer 0 Explorer 0 Win Type - Total 2 Types 2/0/0/0/0/0/0/0/0 Lore% 45 Gallery% 54 Achievement% 47 Wizard Run 0 Options --------- Layout 2 ASCII 0 Keyboard 0 Movement Mouse Keybinds 0 Fullscreen 1 Font 48/Smallcaps Map View 50x44 Zoom Use 0% Tactical HUD 1 Map Filters NONE Filters NONE Steam 1 RUN: 35008c4c-f22a-4711-a756-701b286a4cc9